Cogmind - Beta 12 @@@ ROGUE MODE // 2024.02.18 @ 11:36:28 Player: monistgf Result: Self-destructed Performance ------------- Evolutions (5) 2500 Regions Visited (16) 3200 Robots Destroyed (132) 660 Value Destroyed (5440) 5440 Prototype IDs (15) 300 Alien Tech Used (0) 0 Bonus (5360) 5360 TOTAL SCORE: 17460 Bonus ------- High Alert Combat Kills 387 Follower Combat Kills 1769 Entered Garrisons 400 Used RIF Installer 1000 Entered DSFs 500 Network Hubs Disabled 400 Built Enhanced Grunts 300 A7 Reached Mainframe 300 Met R17 at Cetus 500 Friendly Fire -196 Cogmind --------- Core Integrity 519/1000 Matter 290/300 Energy 82/100 System Corruption 5% Temperature Cool (27) Movement Walking (120) Location -5/Garrison Parts ------- > --- POWER (2) -------- (None) > --- PROPULSION (5) --- Carbon-fiber Leg > --- UTILITY (7) ------ Medium Storage Unit Advanced Signal Interpreter Melee Analysis Suite > --- WEAPON (3) ------- Chainsword > --- INVENTORY (10) --- Huge Storage Unit Advanced Sensor Array Nanoactuators Transmission Jammer Relay Coupler [NC] (30) Improved Remote Datajack Great Maul Chainsword Chainsword Peak State ------------ > --- POWER ------------ Antimatter Reactor Quantum Reactor > --- PROPULSION ------- Enhanced Flexi-carbon Leg Enhanced Flexi-carbon Leg Myomer Leg Myomer Leg Myomer Leg > --- UTILITY ---------- High-capacity Storage Unit Melee Analysis Suite Microactuators Centrium Medium Armor Plating Centrium Medium Armor Plating > --- WEAPON ----------- Chainsword Chainsword Phasing Sabre > --- INVENTORY -------- Improved Deuterium Engine Enhanced Flexi-carbon Leg Enhanced Flexi-carbon Leg Advanced Sensor Array Microactuators Transmission Jammer Centrium Medium Armor Plating Authchip [R/Combat] Relay Coupler [NC] Relay Coupler [Swarmer] Relay Coupler [Grunt] Relay Coupler [Sentry] Relay Coupler [Hunter] Rocket Launcher Great Maul Great Maul Great Maul Chainsword Chainsword Chainsword [Rating: 99] Favorites ----------- Power Quantum Reactor Engine Improved Deuterium Engine Power Core Light Nuclear Core Reactor Quantum Reactor Propulsion Carbon-fiber Leg Treads Medium Treads Leg Carbon-fiber Leg Wheel Armored Wheel Hover Unit Gravmag Array Utility Melee Analysis Suite Device Microactuators Storage High-capacity Storage Unit Processor Melee Analysis Suite Hackware Advanced Hacking Suite Protection Centrium Medium Armor Plating Weapon Chainsword Energy Gun EM Pulse Gun Ballistic Gun Enhanced Autogun Ballistic Cannon Gauss Cannon Launcher Rocket Launcher Impact Weapon Great Maul Slashing Weapon Chainsword Build | -11 -10 -9 -8 -8 -8 -7 -7 -6 -6 -6 -6 -6 -5 -5 -5 -5 ------- Run | Jun Mat Mat Mat Gar Mat Fac DSF Fac Ext Cet Arc Hub Fac Was Fac Gar Slots Evolved 10 | . . 2 2 . . 2 . 2 . . . . 2 . . . Power 1 | . . . . . . . . 1 . . . . . . . . Propulsion 3 | . . 1 1 . . . . 1 . . . . . . . . Utility 5 | . . 1 . . . 2 . . . . . . 2 . . . Weapon 1 | . . . 1 . . . . . . . . . . . . . Parts Attached 208 | . 3 19 10 17 13 7 11 11 36 21 3 25 7 3 14 8 Power 32 | . 2 2 1 2 1 . 2 4 6 2 . 5 . 1 3 1 Engine 17 | . 2 2 . . . . 2 2 4 . . 4 . . 1 . Core 12 | . . . 1 2 1 . . 2 2 . . 1 . . 2 1 Reactor 3 | . . . . . . . . . . 2 . . . 1 . . Propulsion 92 | . . 4 6 9 7 3 4 5 19 9 3 11 3 1 4 4 Treads 4 | . . 2 1 . . . . . . . . . . . 1 . Leg 86 | . . 1 5 9 7 3 4 5 19 9 3 11 3 1 2 4 Wheel 1 | . . 1 . . . . . . . . . . . . . . Hover 1 | . . . . . . . . . . . . . . . 1 . Flight . | . . . . . . . . . . . . . . . . . Utility 42 | . 1 3 1 1 2 2 2 2 4 8 . 6 2 1 5 2 Device 14 | . . 1 1 . . . 2 . . 3 . 3 1 1 2 . Storage 6 | . . 1 . . 1 1 . . . 1 . . . . 2 . Processor 3 | . . . . . . 1 . . . . . 1 1 . . . Hackware 2 | . . . . . . . . . . . . . . . 1 1 Protection 17 | . 1 1 . 1 1 . . 2 4 4 . 2 . . . 1 Artifact . | . . . . . . . . . . . . . . . . . Weapon 42 | . . 10 2 5 3 2 3 . 7 2 . 3 2 . 2 1 Energy Gun 3 | . . 3 . . . . . . . . . . . . . . Energy Cannon . | . . . . . . . . . . . . . . . . . Ballistic Gun 10 | . . 4 2 2 2 . . . . . . . . . . . Ballistic Cannon 2 | . . . . 2 . . . . . . . . . . . . Launcher 7 | . . 1 . 1 . . . . 3 1 . . 1 . . . Special Weapon . | . . . . . . . . . . . . . . . . . Impact Weapon 5 | . . 2 . . 1 2 . . . . . . . . . . Slashing Weapon 15 | . . . . . . . 3 . 4 1 . 3 1 . 2 1 Piercing Weapon . | . . . . . . . . . . . . . . . . . Special Melee Weapon . | . . . . . . . . . . . . . . . . . Unidentified Prototypes 5 | . . . . . . . . . . 4 . . . . 1 . Corrupted Parts 1 | . . . . . . . . . . 1 . . . . . . System Corruption 5 | . . . . . . . . . . 5 . . . . . . Parts Lost 59 | . 1 1 3 2 . . . . 11 1 4 13 . 4 1 18 Power 11 | . 1 1 . . . . . . 3 . . 2 . 1 . 3 Propulsion 27 | . . . 2 . . . . . 7 . 3 5 . 2 1 7 Utility 13 | . . . 1 . . . . . 1 1 1 3 . 1 . 5 Weapon 8 | . . . . 2 . . . . . . . 3 . . . 3 Highest Loss Streak 14 | . 1 1 2 1 . . . . 5 1 4 7 . 3 1 14 To Critical Strikes 1 | . . . . . . . . . . . . . . 1 . . Average Slot Usage (%) 96 | . 99 100 93 99 99 90 96 98 96 99 92 98 100 87 87 83 Engine 4 | . 14 11 2 . . . 3 8 6 4 . 3 11 5 2 . Core 3 | . . . 6 9 9 7 3 3 4 . . . . . . 4 Reactor 2 | . . . . . . . . . . 8 13 7 . 3 5 3 Leg 30 | . 28 27 31 36 35 30 30 32 32 33 30 32 29 25 16 13 Device 9 | . . 4 1 9 9 5 11 13 13 12 8 7 11 9 13 5 Storage 7 | . 14 11 9 9 9 7 7 6 6 6 6 6 5 2 2 5 Processor 6 | . . . . . . 7 7 6 6 6 6 10 17 17 17 11 Protection 7 | . 13 17 10 9 9 7 7 5 5 6 6 5 5 2 . 3 Energy Gun 1 | . 28 8 . . . . . . . . . . . . . . Ballistic Gun 5 | . . 12 27 19 13 . . . . . . . . . . . Ballistic Cannon 1 | . . . . 7 9 . . . . . . . . . . . Slashing Weapon 12 | . . . . . . . 20 20 19 19 20 20 16 17 17 16 Naked Turns . | . . . . . . . . . . . . . . . . . Heaviest Build 119 | 13 14 37 37 42 49 64 65 79 84 97 97 96 77 87 119 61 Greatest Support 140 | 20 20 30 47 47 62 65 68 86 96 134 140 140 81 81 75 55 Greatest Overweight (x) 12 | . . 3 2 . . . . 1 1 . . 2 . 1 2 12 Average Overweight (x) . | . . . . . . . . . . . . . . . . . Largest Inventory Capacity 25 | . 8 15 15 15 15 20 20 20 20 20 20 20 20 20 25 10 Average Capacity 16 | . 8 13 15 15 15 16 20 20 20 20 20 20 20 11 14 10 Most Carried 20 | . 8 15 15 15 15 17 20 19 20 20 20 20 18 16 10 10 Average Carried 15 | . 7 12 13 14 14 15 19 18 19 19 18 19 14 9 5 9 Final Capacity 20 | 8 8 15 15 15 15 20 20 20 20 20 20 20 20 5 10 10 Final Carried 20 | 6 8 14 15 15 15 17 20 18 20 20 20 19 15 5 10 9 Class Distribution -------------------- 44% | Scavenger-Mutant 27% | Mutant 17% | Scavenger-Tank 8% | Commander-Mutant Dominant Class ---------------- Mutant | -10/Materials Mutant | -9/Materials Scavenger-Tank | -8/Materials Scavenger-Tank | -8/Garrison Scavenger-Tank | -8/Materials Mutant | -7/Factory Mutant | -7/DSF Mutant | -6/Factory Mutant | -6/Extension Scavenger-Mutant | -6/Cetus Scavenger-Mutant | -6/Archives Scavenger-Mutant | -6/Hub_04(d) Scavenger-Mutant | -5/Factory Scavenger-Mutant | -5/Waste Mutant | -5/Factory Mutant | -5/Garrison Resources | -11 -10 -9 -8 -8 -8 -7 -7 -6 -6 -6 -6 -6 -5 -5 -5 -5 ----------- Run | Jun Mat Mat Mat Gar Mat Fac DSF Fac Ext Cet Arc Hub Fac Was Fac Gar Matter Collected 3607 | 186 39 377 280 713 243 . 180 100 512 330 25 302 4 . 271 45 Remotely . | . . . . . . . . . . . . . . . . . Salvage Created 5808 | . 148 496 301 884 70 . 312 166 868 66 232 1446 66 . 474 279 Parts 301 | . 21 37 20 46 10 . 20 3 35 . 10 52 14 . 17 16 Haulers Intercepted 2 | . . 1 . . . . . . . . . . . . 1 . Recyclers Shooed 1 | . . 1 . . . . . . . . . . . . . . Parts Field Recycled . | . . . . . . . . . . . . . . . . . Retrieved Matter . | . . . . . . . . . . . . . . . . . Parts Self-Destructed . | . . . . . . . . . . . . . . . . . Prevented . | . . . . . . . . . . . . . . . . . Kills | -11 -10 -9 -8 -8 -8 -7 -7 -6 -6 -6 -6 -6 -5 -5 -5 -5 ------- Run | Jun Mat Mat Mat Gar Mat Fac DSF Fac Ext Cet Arc Hub Fac Was Fac Gar Combat Hostiles Destroyed 107 | . 5 11 8 25 1 . 6 1 10 1 3 20 5 . 2 9 Melee 50 | . . . . . . . 6 1 9 . 3 20 . . 2 9 Guns 32 | . 4 7 8 13 . . . . . . . . . . . . Cannons 9 | . . . . 8 1 . . . . . . . . . . . AOE 16 | . 1 4 . 4 . . . . 1 1 . . 5 . . . Classes Destroyed 14 | . 2 3 . 1 2 . 1 1 . 1 . 2 1 . . . Worker 6 | . . . . . 1 . . . . . . 2 3 . . . Builder 2 | . . . . . 1 . . . 1 . . . . . . . Tunneler 1 | . . . . . . . . . . . . . 1 . . . Hauler 2 | . . 1 . . . . . . . . . . . . 1 . Recycler 7 | . . . . . . . . 1 3 . . 1 . . 2 . Watcher 6 | . 2 3 1 . . . . . . . . . . . . . Swarmer 35 | . 5 4 4 7 . . . . 2 1 . . 5 . . 7 Grunt 39 | . . 3 3 13 1 . 3 . 2 . . 13 . . . 1 Brawler 2 | . . . . 1 . . . . . . . 1 . . . . Sentry 23 | . . 4 1 4 . . . 1 6 . 3 4 . . . . Specialist 3 | . . . . . . . 3 . . . . . . . . . Hunter 1 | . . . . . . . . . . . . 1 . . . . Programmer 4 | . . . . . . . . . . . . 1 . . 2 1 Butcher 1 | . . . . . . . . . . 1 . . . . . . Best Kill Streak 9 | . 4 4 5 8 1 . 3 1 4 1 1 4 9 . 3 4 Combat Bots Only 8 | . 3 4 4 8 1 . 3 1 2 1 1 4 5 . 1 4 Max Kills in Single Turn 6 | . 1 3 1 4 1 . 1 1 1 2 1 1 6 . 1 1 Gunslinging . | . . . . . . . . . . . . . . . . . Exploded 4 | . 1 3 . 4 . . . . 1 1 . . 4 . . . Melee 1 | . . . . . . . 1 1 1 . 1 1 . . 1 1 Uniques/NPCs Destroyed . | . . . . . . . . . . . . . . . . . Combat | -11 -10 -9 -8 -8 -8 -7 -7 -6 -6 -6 -6 -6 -5 -5 -5 -5 -------- Run | Jun Mat Mat Mat Gar Mat Fac DSF Fac Ext Cet Arc Hub Fac Was Fac Gar Damage Taken 10185 | . 142 538 373 743 143 . 440 165 1404 777 403 2284 47 127 357 2242 Core 1432 | . 22 96 30 117 15 . 40 . 186 126 62 257 . 43 57 381 Absorbed by Shields 219 | . . . . 18 . . . . 42 153 . . . . . 6 Redirected to Shielding 18 | . . . 5 13 . . . . . . . . . . . . Regen/Repaired (Parts) 106 | . . . . . 106 . . . . . . . . . . . Core Remaining (%) 76 | 100 91 76 . . 70 . 94 . . . . 25 . . . . Volleys Fired 158 | . 12 40 26 50 7 . . . 16 3 . . 4 . . . Largest 3 | . 2 2 3 3 3 . . . 1 1 . . 1 . . . Hottest 101 | . 80 80 71 96 101 . . . 33 33 . . 43 . . . Shots Fired 359 | . 18 77 78 143 19 . . . 17 3 . . 4 . . . Gun 282 | . 18 74 78 100 12 . . . . . . . . . . . Cannon 49 | . . . . 42 7 . . . . . . . . . . . Launcher 28 | . . 3 . 1 . . . . 17 3 . . 4 . . . Special . | . . . . . . . . . . . . . . . . . Kinetic 294 | . . 55 78 142 19 . . . . . . . . . . . Thermal 17 | . 6 11 . . . . . . . . . . . . . . Explosive 28 | . . 3 . 1 . . . . 17 3 . . 4 . . . Electromagnetic 20 | . 12 8 . . . . . . . . . . . . . . Robot Hit Streak 17 | . 7 10 10 17 4 . . . 5 . . . 1 . . . Robot Miss Streak 6 | . 2 5 3 5 3 . . . 3 4 . . 6 . . . Penetration Max . | . . . . . . . . . . . . . . . . . Secondary Targets 2 | . . . 2 . . . . . . . . . . . . . Max Gunslinging Chain 1 | . . . 1 . . . . . . . . . . . . . Shots Hit Robots 419 | . 11 50 43 88 9 . 16 9 42 2 9 85 1 . 9 45 Core Hits 223 | . 7 27 18 45 5 . 7 3 37 5 3 37 12 . 5 12 Critical Kills 2 | . . . . 1 1 . . . . . . . . . . . Critical Parts Destroyed 4 | . . . 1 1 1 . 1 . . . . . . . . . Critical Strikes 43 | . . 1 1 9 2 . 2 2 5 . . 10 . . 4 7 Destroy 4 | . . . 1 2 1 . . . . . . . . . . . Blast 7 | . . . . 7 . . . . . . . . . . . . Corrupt 1 | . . 1 . . . . . . . . . . . . . . Smash 3 | . . . . . 1 . 2 . . . . . . . . . Sever 28 | . . . . . . . . 2 5 . . 10 . . 4 7 Melee Attacks 301 | . . 5 . . 1 . 21 11 55 2 12 119 2 . 12 61 Impact 9 | . . 5 . . 1 . 3 . . . . . . . . . Slashing 292 | . . . . . . . 18 11 55 2 12 119 2 . 12 61 Piercing . | . . . . . . . . . . . . . . . . . Sneak Attacks 13 | . . . . . 1 . 1 1 3 . . 4 . . 3 . Combat Hostiles 1 | . . . . . . . 1 . . . . . . . . . Follow-up Attacks 59 | . . . . . . . 5 1 5 . 1 27 . . 1 19 Damage Inflicted 14104 | . 268 938 608 1869 350 . 668 376 2283 261 408 3298 650 . 468 1659 Guns 2491 | . 145 719 608 909 110 . . . . . . . . . . . Cannons 768 | . . . . 655 113 . . . . . . . . . . . Explosions 2243 | . 123 219 . 298 . . . . 790 163 . . 650 . . . Melee 8584 | . . . . . 127 . 668 376 1482 98 408 3298 . . 468 1659 Ramming 18 | . . . . 7 . . . . 11 . . . . . . . Kinetic 2967 | . . 572 608 1564 223 . . . . . . . . . . . Thermal 214 | . 144 70 . . . . . . . . . . . . . . Explosive 2120 | . . 219 . 298 . . . . 790 163 . . 650 . . . Electromagnetic 201 | . 124 77 . . . . . . . . . . . . . . Impact 310 | . . . . . 127 . 183 . . . . . . . . . Slashing 8274 | . . . . . . . 485 376 1482 98 408 3298 . . 468 1659 Piercing . | . . . . . . . . . . . . . . . . . Highest Corruption 26 | . . . . . . . . . 4 10 10 26 . . 3 5 Average Corruption 7 | . . . . . . . . . 3 4 10 15 . . 2 3 Corruption Purged . | . . . . . . . . . . . . . . . . . Corruption Blocked . | . . . . . . . . . . . . . . . . . Effects 108 | . . . . . . . . . 29 18 6 44 . . 2 9 Message Errors 26 | . . . . . . . . . 4 5 3 10 . . 1 3 Matter Fused 24 | . . . . . . . . . 4 7 1 10 . . 1 1 Heat Flow Errors 16 | . . . . . . . . . 9 3 . 4 . . . . Energy Discharges 12 | . . . . . . . . . 4 . . 5 . . . 3 Parts Rejected 4 | . . . . . . . . . 1 . . 3 . . . . Parts Fused 2 | . . . . . . . . . . 1 . 1 . . . . Data Loss (minor) 17 | . . . . . . . . . 5 2 2 7 . . . 1 Data Loss (major) 5 | . . . . . . . . . 1 . . 3 . . . 1 Misfires 1 | . . . . . . . . . 1 . . . . . . . Alerts 1 | . . . . . . . . . . . . 1 . . . . Overload Shots . | . . . . . . . . . . . . . . . . . Overflow Damage 407 | . 24 47 . 9 . . 41 . 99 . . 105 2 . . 80 Projectiles 9 | . . . . 9 . . . . . . . . . . . . Explosions 95 | . 24 47 . . . . . . 22 . . . 2 . . . Melee 303 | . . . . . . . 41 . 77 . . 105 . . . 80 Knockbacks 7 | . . . . 7 . . . . . . . . . . . . Impact . | . . . . . . . . . . . . . . . . . Kinetic 7 | . . . . 7 . . . . . . . . . . . . Secondary . | . . . . . . . . . . . . . . . . . Self-Inflicted Damage 180 | . 84 64 . . . . . . 14 . . . 18 . . . Shots 5 | . 1 2 . . . . . . 1 . . . 1 . . . Rammed . | . . . . . . . . . . . . . . . . . Targets Rammed 2 | . . . . 1 . . . . 1 . . . . . . . Kicked 2 | . . . . 1 . . . . 1 . . . . . . . Crushed . | . . . . . . . . . . . . . . . . . Highest Temperature 304 | . 51 147 74 6 2 . . 1 277 234 4 304 . . . 9 Average Temperature 77 | . 19 47 37 4 1 . . 1 103 102 4 135 . . . 6 Received Heat Transfer 2782 | . . 198 189 296 18 . 72 72 420 56 63 624 . . . 774 Effects 4 | . . . . . . . . . . . . 4 . . . . Energy Bleed 2 | . . . . . . . . . . . . 2 . . . . Interference 2 | . . . . . . . . . . . . 2 . . . . Siege Activations . | . . . . . . . . . . . . . . . . . Robots Corrupted . | . . . . . . . . . . . . . . . . . Combat Hostiles . | . . . . . . . . . . . . . . . . . Parts Fried . | . . . . . . . . . . . . . . . . . Impact Corruptions 1 | . . . . . . . 1 . . . . . . . . . Robots Melted . | . . . . . . . . . . . . . . . . . Combat Hostiles . | . . . . . . . . . . . . . . . . . Parts Melted 1 | . . . . . . . . . . . . 1 . . . . Heat Transferred 386 | . 200 186 . . . . . . . . . . . . . . Parts Sabotaged . | . . . . . . . . . . . . . . . . . Parts Stolen . | . . . . . . . . . . . . . . . . . Parts Stripped . | . . . . . . . . . . . . . . . . . Power Chain Reactions 3 | . 3 . . . . . . . . . . . . . . . Missiles Intercepted . | . . . . . . . . . . . . . . . . . Alert | -11 -10 -9 -8 -8 -8 -7 -7 -6 -6 -6 -6 -6 -5 -5 -5 -5 ------- Run | Jun Mat Mat Mat Gar Mat Fac DSF Fac Ext Cet Arc Hub Fac Was Fac Gar Peak Influence 1093 | . 242 291 393 1093 565 163 234 202 316 773 346 453 408 142 106 248 Initial 532 | . . 45 122 255 532 158 114 122 7 176 249 121 185 142 71 36 Average 281 | . 101 152 277 734 400 158 152 104 135 418 324 306 227 130 68 148 Maximum Alert Level 3 | . 1 1 1 3 2 . 1 1 1 3 1 2 2 . . 1 Low Security (%) 47 | . 87 72 25 . . 100 84 96 82 4 . 10 77 100 100 85 Level 1 31 | . 12 27 74 25 47 . 15 3 17 33 100 75 17 . . 14 Level 2 13 | . . . . 17 52 . . . . 56 . 14 4 . . . Level 3 6 | . . . . 56 . . . . . 5 . . . . . . Level 4 . | . . . . . . . . . . . . . . . . . Level 5 . | . . . . . . . . . . . . . . . . . High Security . | . . . . . . . . . . . . . . . . . Max Security . | . . . . . . . . . . . . . . . . . Squads Dispatched 13 | . 1 . 2 . . . 1 1 1 . . 6 . . 1 . Investigation 3 | . . . 1 . . . . . . . . 2 . . . . Extermination 2 | . . . . . . . . . . . . 1 . . 1 . Reinforcement 7 | . 1 . . . . . 1 1 1 . . 3 . . . . Assault . | . . . . . . . . . . . . . . . . . Garrison 1 | . . . 1 . . . . . . . . . . . . . Intercept . | . . . . . . . . . . . . . . . . . Searches Triggered . | . . . . . . . . . . . . . . . . . Construction Impeded . | . . . . . . . . . . . . . . . . . Haulers Reinforced . | . . . . . . . . . . . . . . . . . Active Scanning Responses . | . . . . . . . . . . . . . . . . . Cargo Convoy Interrupts . | . . . . . . . . . . . . . . . . . Stealth | -11 -10 -9 -8 -8 -8 -7 -7 -6 -6 -6 -6 -6 -5 -5 -5 -5 --------- Run | Jun Mat Mat Mat Gar Mat Fac DSF Fac Ext Cet Arc Hub Fac Was Fac Gar Distress Signals 12 | . . 1 1 . . . . . 5 2 . 3 . . . . Communications Jammed . | . . . . . . . . . . . . . . . . . Distress Signals . | . . . . . . . . . . . . . . . . . Times Spotted 217 | . 11 17 12 30 9 . 8 3 31 24 4 39 3 3 2 21 Peak Tracking Total 12 | . 4 4 8 6 1 . 3 1 6 7 2 10 4 4 2 12 Tactical Retreats 13 | . . . 1 3 . . 1 . 3 . . 2 . 1 . 2 Traps | -11 -10 -9 -8 -8 -8 -7 -7 -6 -6 -6 -6 -6 -5 -5 -5 -5 ------- Run | Jun Mat Mat Mat Gar Mat Fac DSF Fac Ext Cet Arc Hub Fac Was Fac Gar Traps Triggered 19 | . . . . 5 . . . 5 2 . . 3 1 . . 3 Indirectly . | . . . . . . . . . . . . . . . . . Trap Hack Attempts . | . . . . . . . . . . . . . . . . . Triggered . | . . . . . . . . . . . . . . . . . Disarmed . | . . . . . . . . . . . . . . . . . Reprogrammed . | . . . . . . . . . . . . . . . . . Reused . | . . . . . . . . . . . . . . . . . Traps Extracted . | . . . . . . . . . . . . . . . . . Installed . | . . . . . . . . . . . . . . . . . Triggered . | . . . . . . . . . . . . . . . . . Machines | -11 -10 -9 -8 -8 -8 -7 -7 -6 -6 -6 -6 -6 -5 -5 -5 -5 ---------- Run | Jun Mat Mat Mat Gar Mat Fac DSF Fac Ext Cet Arc Hub Fac Was Fac Gar Machines Disabled 15 | . 4 1 . 3 1 . . 1 . 3 . . 1 . . 1 Max in Single Turn 3 | . 3 1 . 1 1 . . 1 . . . . 1 . . 1 Garrison Access 1 | . . . . . . . . . . . . 1 . . . . Garrison Relay 4 | . . . . 3 . . . . . . . . . . . 1 Network Hub 2 | . . . . . . . . . . . . 2 . . . . Machines Repaired 1 | . . . . . . . . . . . . 1 . . . . Machines Sabotaged . | . . . . . . . . . . . . . . . . . Overloaded Fab Kills . | . . . . . . . . . . . . . . . . . Hacking | -11 -10 -9 -8 -8 -8 -7 -7 -6 -6 -6 -6 -6 -5 -5 -5 -5 --------- Run | Jun Mat Mat Mat Gar Mat Fac DSF Fac Ext Cet Arc Hub Fac Was Fac Gar Machines Accessed 49 | . 4 7 4 2 5 1 . 6 8 1 . 8 1 . 2 . Terminals 43 | . 4 7 3 2 4 1 . 4 8 1 . 7 1 . 1 . Fabricators 2 | . . . . . . . . 2 . . . . . . . . Repair Stations 1 | . . . . . 1 . . . . . . . . . . . Recycling Units . | . . . . . . . . . . . . . . . . . Scanalyzers . | . . . . . . . . . . . . . . . . . Garrison Access 3 | . . . 1 . . . . . . . . 1 . . 1 . Total Hacks 116 | . 10 19 12 2 15 2 . 10 12 3 . 21 2 . 8 . Successful 51 | . 6 10 5 2 8 1 . 3 6 1 . 6 . . 3 . Failed 65 | . 4 9 7 . 7 1 . 7 6 2 . 15 2 . 5 . Catastrophic 16 | . 1 1 2 . 2 . . 1 3 . . 5 . . 1 . Database Lockouts . | . . . . . . . . . . . . . . . . . Manual 56 | . 4 12 5 . 4 . . 2 . 2 . 20 2 . 5 . Terminals 104 | . 10 19 10 2 11 2 . 6 12 3 . 20 2 . 7 . Fabricators 4 | . . . . . . . . 4 . . . . . . . . Repair Stations 4 | . . . . . 4 . . . . . . . . . . . Recycling Units . | . . . . . . . . . . . . . . . . . Scanalyzers . | . . . . . . . . . . . . . . . . . Garrison Access 4 | . . . 2 . . . . . . . . 1 . . 1 . Terminal Hacks 37 | . 6 8 3 2 5 1 . 2 6 1 . 2 . . 1 . Robot Analysis 2 | . . 1 . . 1 . . . . . . . . . . . Prototype ID Bank 5 | . 1 2 1 . . . . . . . . 1 . . . . Open Door 7 | . . . . 1 . . . 1 4 1 . . . . . . Open DSF 1 | . . . . . . 1 . . . . . . . . . . Branch Access Points 3 | . 1 2 . . . . . . . . . . . . . . Emergency Access Points 1 | . . . . 1 . . . . . . . . . . . . Terminal Index 1 | . . . 1 . . . . . . . . . . . . . Alert Level 2 | . 1 1 . . . . . . . . . . . . . . Unreport Threat 3 | . 1 . . . 2 . . . . . . . . . . . Locate Traps 8 | . 2 . 1 . 1 . . 1 1 . . 1 . . 1 . Hauler Manifests 1 | . . 1 . . . . . . . . . . . . . . Zone Layout 3 | . . 1 . . 1 . . . 1 . . . . . . . Fabricator Hacks 1 | . . . . . . . . 1 . . . . . . . . Network Status 1 | . . . . . . . . 1 . . . . . . . . Repair Station Hacks 2 | . . . . . 2 . . . . . . . . . . . Scan Component 1 | . . . . . 1 . . . . . . . . . . . Repair 1 | . . . . . 1 . . . . . . . . . . . Recycling Unit Hacks . | . . . . . . . . . . . . . . . . . Scanalyzer . | . . . . . . . . . . . . . . . . . Garrison Access Hacks 3 | . . . 1 . . . . . . . . 1 . . 1 . Unlock Access 2 | . . . 1 . . . . . . . . . . . 1 . Seal Access 1 | . . . . . . . . . . . . 1 . . . . Unauthorized Hacks 8 | . . 2 1 . 1 . . . . . . 3 . . 1 . Terminals 8 | . . 2 1 . 1 . . . . . . 3 . . 1 . Botnet 6 | . . 2 1 . 1 . . . . . . 1 . . 1 . Detonate 1 | . . . . . . . . . . . . 1 . . . . Sabotage 1 | . . . . . . . . . . . . 1 . . . . Fabricators . | . . . . . . . . . . . . . . . . . Repair Stations . | . . . . . . . . . . . . . . . . . Recycling Units . | . . . . . . . . . . . . . . . . . Scanalyzers . | . . . . . . . . . . . . . . . . . Garrison Access . | . . . . . . . . . . . . . . . . . Data Cores Recovered 1 | . . . . . . . . . 1 . . . . . . . Used . | . . . . . . . . . . . . . . . . . Hacking Detections 40 | . 4 6 4 . 5 1 . 6 5 1 . 6 1 . 1 . Full Trace Events 2 | . . 1 1 . . . . . . . . . . . . . Feedback Events . | . . . . . . . . . . . . . . . . . Feedback Blocked . | . . . . . . . . . . . . . . . . . Robot Schematics Acquired . | . . . . . . . . . . . . . . . . . Robots Built . | . . . . . . . . . . . . . . . . . Authchips . | . . . . . . . . . . . . . . . . . Time . | . . . . . . . . . . . . . . . . . Total Robot Build Rating . | . . . . . . . . . . . . . . . . . Part Schematics Acquired . | . . . . . . . . . . . . . . . . . Parts Built . | . . . . . . . . . . . . . . . . . Authchips . | . . . . . . . . . . . . . . . . . Time . | . . . . . . . . . . . . . . . . . Total Part Build Rating . | . . . . . . . . . . . . . . . . . Parts Repaired 1 | . . . . . 1 . . . . . . . . . . . Time 38 | . . . . . 38 . . . . . . . . . . . Parts Recycled . | . . . . . . . . . . . . . . . . . Recycled Matter . | . . . . . . . . . . . . . . . . . Retrieved Matter . | . . . . . . . . . . . . . . . . . Retrieved Components . | . . . . . . . . . . . . . . . . . Parts Scanalyzed . | . . . . . . . . . . . . . . . . . Part Schematics Acquired . | . . . . . . . . . . . . . . . . . Parts Damaged . | . . . . . . . . . . . . . . . . . Bothacking | -11 -10 -9 -8 -8 -8 -7 -7 -6 -6 -6 -6 -6 -5 -5 -5 -5 ------------ Run | Jun Mat Mat Mat Gar Mat Fac DSF Fac Ext Cet Arc Hub Fac Was Fac Gar Used RIF Installer 2 | . . . . 1 . . . . . . . . . . . 1 Threat Obfuscator 1 | . . . . . . . . . . . . . . . . 1 Robots Hacked . | . . . . . . . . . . . . . . . . . Non-combat . | . . . . . . . . . . . . . . . . . Combat . | . . . . . . . . . . . . . . . . . Robot Hacks Applied . | . . . . . . . . . . . . . . . . . Relay Couplers Released 17 | . . . . 12 . . . . . . . 2 . . . 3 Machine Destruction 17 | . . . . 12 . . . . . . . 2 . . . 3 Attached 1 | . . . . . . . . . . . . . . . . 1 Fabnet Peak Effective % . | . . . . . . . . . . . . . . . . . Robots Rewired 19 | . . . . 4 . . . . 15 . . . . . . . Allies Hacked . | . . . . . . . . . . . . . . . . . Hacks Repelled . | . . . . . . . . . . . . . . . . . Allies | -11 -10 -9 -8 -8 -8 -7 -7 -6 -6 -6 -6 -6 -5 -5 -5 -5 -------- Run | Jun Mat Mat Mat Gar Mat Fac DSF Fac Ext Cet Arc Hub Fac Was Fac Gar Total Allies 29 | . . . . 4 . . . . 20 5 . . . . . . Largest Group 12 | . . . . 4 4 3 3 . 12 12 1 . . . . . Highest-Rated Group 810 | . . . . 113 113 82 82 . 485 810 89 . . . . . Highest-Rated Ally 159 | . . . . 31 31 31 31 . 159 159 89 . . . . . Total Orders 2 | . . . . . . . . . . 2 . . . . . . STAY 1 | . . . . . . . . . . 1 . . . . . . FOLLOW 1 | . . . . . . . . . . 1 . . . . . . Ally Attacks 284 | . . . . 2 55 . 13 . 75 126 13 . . . . . Total Damage 7143 | . . . . 43 727 . 252 . 1311 4336 474 . . . . . Kills 50 | . . . . 1 6 . 1 . 12 29 1 . . . . . Allies Corrupted 1 | . . . . . . . . . . 1 . . . . . . Allies Melted 1 | . . . . . . . . . . 1 . . . . . . Intel | -11 -10 -9 -8 -8 -8 -7 -7 -6 -6 -6 -6 -6 -5 -5 -5 -5 ------- Run | Jun Mat Mat Mat Gar Mat Fac DSF Fac Ext Cet Arc Hub Fac Was Fac Gar Robot Analysis Total 2 | . . 1 . . 1 . . . . . . . . . . . Derelict Logs Recovered . | . . . . . . . . . . . . . . . . . Drone Launches . | . . . . . . . . . . . . . . . . . Drone Recoveries . | . . . . . . . . . . . . . . . . . Exploration | -11 -10 -9 -8 -8 -8 -7 -7 -6 -6 -6 -6 -6 -5 -5 -5 -5 ------------- Run | Jun Mat Mat Mat Gar Mat Fac DSF Fac Ext Cet Arc Hub Fac Was Fac Gar Turns Passed 8570 | . 249 723 346 981 696 125 157 696 1096 838 122 1185 165 159 607 425 Spaces Moved 4662 | 1 171 354 185 513 456 87 76 468 509 346 72 684 118 119 353 150 Core 1 | . . . . . . . . . . . . . . . . 1 Treads 1 | . . . . . . . . . . . . . . . . 1 Legs 4507 | 1 171 265 121 513 456 87 76 468 509 346 72 684 118 119 353 148 Wheels 153 | . . 89 64 . . . . . . . . . . . . . Hover . | . . . . . . . . . . . . . . . . . Flight . | . . . . . . . . . . . . . . . . . Fastest Speed 120 | 120 120 120 120 122 122 122 122 122 120 120 120 120 120 120 120 120 Average Speed 126 | 120 120 138 120 122 122 122 122 122 121 120 120 120 120 129 147 161 Slowest Speed 650 | 120 120 190 122 122 122 122 122 192 192 120 120 260 120 190 260 650 Overloaded Moves . | . . . . . . . . . . . . . . . . . Propulsion Burnouts . | . . . . . . . . . . . . . . . . . Robots Hopped . | . . . . . . . . . . . . . . . . . Cave-ins Triggered . | . . . . . . . . . . . . . . . . . Exploration Rate (%) 40 | 2 54 38 15 57 50 3 52 11 61 81 71 78 6 84 9 17 Regions Visited 16 Branch Regions 4 Pre-discovered Areas . | . . . . . . . . . . . . . . . . . Known Exits Taken 4 | . . . 1 . . 1 . . . . . 1 . . 1 . Unknown Exits Taken 8 | 1 1 1 . . 1 . . 1 1 1 1 . . . . . Scrap Searched . | . . . . . . . . . . . . . . . . . Spaces Dug 82 | . . 3 . . . . . 1 66 . . 11 . . 1 . Terrain Destroyed 284 | . 36 42 . 3 5 . . 1 116 27 . 11 42 . 1 . Melee 16 | . . 3 . . . . . 1 . . . 11 . . 1 . Projectile 6 | . . . . 1 5 . . . . . . . . . . . AOE 262 | . 36 39 . 2 . . . . 116 27 . . 42 . . . Terrain Rammed . | . . . . . . . . . . . . . . . . . Walls Destroyed . | . . . . . . . . . . . . . . . . . Machines Disabled . | . . . . . . . . . . . . . . . . . Actions | -11 -10 -9 -8 -8 -8 -7 -7 -6 -6 -6 -6 -6 -5 -5 -5 -5 --------- Run | Jun Mat Mat Mat Gar Mat Fac DSF Fac Ext Cet Arc Hub Fac Was Fac Gar Total 6867 | . 198 496 259 799 588 105 133 581 948 774 99 940 135 122 424 266 Wait 1152 | . 4 67 23 111 90 6 15 93 135 380 14 121 4 1 36 52 Move 4648 | . 170 353 184 512 455 86 75 467 508 345 71 683 118 118 353 150 Hop . | . . . . . . . . . . . . . . . . . Pick Up 79 | . 5 6 7 13 5 2 5 . 8 4 2 15 1 . 5 1 Fast Attach 65 | . 2 3 3 1 3 1 5 7 6 5 1 11 . 2 9 6 Attach 37 | . . 3 4 2 . 1 . 3 6 1 2 8 5 . 1 1 Detach 11 | . . 2 2 . . 2 3 . . . . 1 . . 1 . Swap 106 | . 1 13 3 14 10 5 6 1 24 15 . 6 2 1 4 1 Drop 128 | . 4 4 7 24 17 2 10 . 18 19 . 16 . . 6 1 Fire 158 | . 12 40 26 50 7 . . . 16 3 . . 4 . . . Melee 211 | . . 5 . . 1 . 14 10 42 2 9 79 1 . 9 39 Ram . | . . . . . . . . . . . . . . . . . Kick 2 | . . . . 1 . . . . 1 . . . . . . . Crush . | . . . . . . . . . . . . . . . . . Escape Stasis 25 | . . . . 10 . . . . . . . . . . . 15 Rewire 245 | . . . . 61 . . . . 184 . . . . . . . Trap . | . . . . . . . . . . . . . . . . . Miscellaneous . | . . . . . . . . . . . . . . . . . Route ------- -11/Junkyard -10/Materials (discovered 3 exits: *Mat / *Min x2) -9/Materials (discovered 3 exits: *Mat / *Min x2) -8/Materials -8/Garrison (discovered 2 exits: *Mat x2) -8/Materials -7/Factory -7/DSF -6/Factory -6/Extension (discovered 2 exits: *Fac / *Cet) -6/Cetus (discovered 2 exits: *Fac / [*Arc]) -6/Archives -6/Hub_04(d) -5/Factory -5/Waste -5/Factory -5/Garrison History --------- Turn | Location | Event 1 | -11/Junkyard | Discovered new exit (range 0) 1 | -11/Junkyard | Entered Materials 100 | -10/Materials | Discovered new exit (range 16) 180 | -10/Materials | Identified exit to Mines 188 | -10/Materials | Discovered new exit (range 4) 250 | -10/Materials | Entered another Materials area 250 | -9/Materials | Evolved 2 slots: Propulsion x1, Utility x1 306 | -9/Materials | Identified exit to Mines 324 | -9/Materials | Build established: Mutant 914 | -9/Materials | Discovered new exit (range 4) 973 | -9/Materials | Entered another Materials area 973 | -8/Materials | Evolved 2 slots: Propulsion x1, Weapon x1 1118 | -8/Materials | Garrison activated, responded to threat 1221 | -8/Materials | Identified exit to Garrison 1319 | -8/Materials | Entered Garrison 1373 | -8/Garrison | Build established: Scavenger-Tank 1384 | -8/Garrison | Triggered checkpoint 1452 | -8/Garrison | Garrison Relay disabled 1550 | -8/Garrison | Triggered checkpoint 1580 | -8/Garrison | Triggered checkpoint 1646 | -8/Garrison | Discovered new exit (range 12) 1706 | -8/Garrison | Triggered checkpoint 1829 | -8/Garrison | Destroyed 8 combat bots 1843 | -8/Garrison | Garrison Relay disabled 2078 | -8/Garrison | Triggered checkpoint 2120 | -8/Garrison | Triggered checkpoint 2145 | -8/Garrison | Discovered new exit (range 15) 2179 | -8/Garrison | Installed Relay Interface Framework 2226 | -8/Garrison | Garrison Relay disabled 2300 | -8/Garrison | Entered Materials 2300 | -8/Materials | Accompanied by 4 allies 2631 | -8/Materials | Repaired Titanium Leg 2963 | -8/Materials | Discovered new exit (range 10) 2969 | -8/Materials | Build established: Scavenger-Mutant 2996 | -8/Materials | Entered Factory 2996 | -7/Factory | Accompanied by 3 allies 2996 | -7/Factory | Evolved 2 slots: Utility x2 3115 | -7/Factory | Identified exit to DSF 3121 | -7/Factory | Entered DSF 3121 | -7/DSF | Accompanied by 3 allies 3157 | -7/DSF | Additional patrols routed to DSF 3209 | -7/DSF | Discovered new exit (range 14) 3278 | -7/DSF | Entered Factory 3278 | -6/Factory | Evolved 2 slots: Power x1, Propulsion x1 3700 | -6/Factory | Discovered new exit (range 10) 3920 | -6/Factory | Build established: Mutant 3974 | -6/Factory | Entered Extension 4237 | -6/Extension | Rescued a captive Derelict 4238 | -6/Extension | Rescued a captive Derelict 4262 | -6/Extension | Rescued a captive Derelict 4305 | -6/Extension | Spotted B-75 Beast 4324 | -6/Extension | Lost 5 parts (2p2n1u) 4632 | -6/Extension | Rescued a captive Derelict 4700 | -6/Extension | Lost 3 parts (1p2n) 4708 | -6/Extension | Rescued A7 5033 | -6/Extension | Discovered new exit (range 10) 5034 | -6/Extension | Discovered new exit (range 6) 5070 | -6/Extension | Entered Cetus 5070 | -6/Cetus | Accompanied by 12 allies (A7) 5075 | -6/Cetus | Acquired a Cetus Manufacturing Module code from A7 5087 | -6/Cetus | Spotted Cetus Guard 5087 | -6/Cetus | Spotted Cetus Guard 5090 | -6/Cetus | Spotted Cetus Guard 5091 | -6/Cetus | Spotted Cetus Guard 5104 | -6/Cetus | Allies destroyed Cetus Guard 5107 | -6/Cetus | Allies destroyed Cetus Guard 5107 | -6/Cetus | Allies destroyed Cetus Guard 5109 | -6/Cetus | Allies destroyed Cetus Guard 5172 | -6/Cetus | Escorted A7 to Cetus Mainframe 5181 | -6/Cetus | Started Cetus Manufacturing Module 5206 | -6/Cetus | Manufactured an Enhanced Grunt 5231 | -6/Cetus | Manufactured an Enhanced Grunt 5256 | -6/Cetus | Manufactured an Enhanced Grunt 5281 | -6/Cetus | Manufactured an Enhanced Grunt 5306 | -6/Cetus | Manufactured an Enhanced Grunt 5314 | -6/Cetus | Cetus Manufacturing Module disabled 5496 | -6/Cetus | Build established: Commander-Mutant 5570 | -6/Cetus | Found Prototype Device 5570 | -6/Cetus | Identified Exp. Thermal Shield 5777 | -6/Cetus | Discovered new exit (range 15) 5800 | -6/Cetus | Spotted Cetus Guard 5800 | -6/Cetus | Spotted Cetus Guard 5804 | -6/Cetus | Spotted Cetus Guard 5809 | -6/Cetus | Allies destroyed Cetus Guard 5809 | -6/Cetus | Spotted Cetus Guard 5827 | -6/Cetus | Allies destroyed Cetus Guard 5832 | -6/Cetus | Discovered new exit (range 15) 5834 | -6/Cetus | Allies destroyed Cetus Guard 5844 | -6/Cetus | Allies destroyed Cetus Guard 5845 | -6/Cetus | Met Revision 17 5863 | -6/Cetus | Extracted ID and sensor layout for unrecognized location from A7's data core 5893 | -6/Cetus | Build established: Scavenger-Mutant 5907 | -6/Cetus | System corruption reached 10% 5908 | -6/Cetus | Entered Archives 5908 | -6/Archives | Accompanied by 1 ally 5953 | -6/Archives | Discovered new exit (range 15) 5980 | -6/Archives | Lost 4 parts (3n1u) 6030 | -6/Archives | Entered Hub_04(d) 6148 | -6/Hub_04(d) | Core integrity fell below 50% 6371 | -6/Hub_04(d) | Lost 7 parts (1p1n2u3w) 6551 | -6/Hub_04(d) | Spotted B-75 Beast 7121 | -6/Hub_04(d) | Discovered new exit (range 4) 7132 | -6/Hub_04(d) | Identified exit to Factory 7194 | -6/Hub_04(d) | Network Hub disabled 7194 | -6/Hub_04(d) | Network Hub disabled 7203 | -6/Hub_04(d) | Spotted Lightning 7203 | -6/Hub_04(d) | Spotted Lightning 7203 | -6/Hub_04(d) | Spotted Lightning 7210 | -6/Hub_04(d) | Spotted Lightning 7212 | -6/Hub_04(d) | Spotted Lightning 7213 | -6/Hub_04(d) | Spotted Lightning 7215 | -6/Hub_04(d) | Entered Factory 7215 | -5/Factory | Evolved 2 slots: Utility x2 7242 | -5/Factory | Lost 3 parts (3n) 7379 | -5/Factory | Discovered new exit (range 8) 7380 | -5/Factory | Sucked down chute 7380 | -5/Factory | Entered Waste 7415 | -5/Waste | Spotted C-40 Crusher 7442 | -5/Waste | Spotted C-40 Crusher 7446 | -5/Waste | Spotted C-40 Crusher 7454 | -5/Waste | Crushed by Compactor (1 part destroyed, 1 dropped) 7482 | -5/Waste | Spotted C-40 Crusher 7506 | -5/Waste | Crushed by Compactor (1 part destroyed, 2 dropped) 7509 | -5/Waste | Crushed by Compactor (1 part destroyed, 1 dropped) 7522 | -5/Waste | Discovered new exit (range 10) 7537 | -5/Waste | Identified exit to Factory 7539 | -5/Waste | Entered Factory 7540 | -5/Factory | Lost 3 parts (1p2n) 7814 | -5/Factory | Build established: Mutant 8146 | -5/Factory | Identified exit to Garrison 8146 | -5/Factory | Entered Garrison 8174 | -5/Garrison | Triggered checkpoint 8225 | -5/Garrison | Garrison Relay disabled 8239 | -5/Garrison | Expanded RIF knowledge: Threat Obfuscation 8571 | -5/Garrison | Self-destructed Last Messages --------------- 08542_ Relay Coupler [Grunt] destroyed. 08544_ Critical hit (Burn: +37). 08546_ Acquired Carbon-fiber Leg. 08550_ G-50 Soldier Carbon-fiber Leg severed. 08552_ Chainsword destroyed. 08554_ G-50 Soldier Carbon-fiber Leg severed. 08556_ Chainsword destroyed. 08558_ Critical hit (Burn: +37). 08558_ Acquired Carbon-fiber Leg. 08560_ Centrium Medium Armor Plating destroyed. 08563_ Critical hit (Burn: +37). 08563_ G-50 Soldier destroyed. 08563_ Chainsword follow-up attack on G-50 Soldier. Garrison Door activated. 08567_ Critical hit (Burn: +37). 08567_ Chainsword destroyed. 08567_ Acquired Carbon-fiber Leg. 08571_ Carbon-fiber Leg destroyed. 08571_ Critical hit (Burn: +37). 08571_ Carbon-fiber Leg destroyed. Map ----- +----------------------------------------------------+ | ?????????????????????????????????????????????????? | | ?????????????????????????????????????????????????? | | ?????????????????????????????????????????????????? | | ????????????????????????????????????????######???? | | ????????????????????????????????????????# #???? | | ????????????????????????????????????????# #???? | | ????????????????????????????????????????# #???? | | ????????????????????????????????????????# ###???? | | ????????????????????????????????????????# #?????? | | ????????????????????????????????????????# #????## | | ????????????????????????????????????????# #????#" | | ????????????????????????????????????????# #????#" | | ????????????????????????????????????????# #????#" | | ????????????????????????????????????????# #????#" | | ?????????????????????????################ #????# | | ?????????????????????????#=%![=%% #????## | | ?????????????????????????#%[=|!%= + #???# | | ?????????????????????????#= #####+##### ####?????# | | ?????????????????????????# [#?????????# #????????# | | ?????????????????????????# #?????????# #????????# | | ?????????????????????????# #?????????# #????????# | | ?????????????????????????# #?????????# #?#####??# | | ??????????????# ???####### #?????????# #?# #??# | | ??????????????# ??# ## #?????????#*###[ #### | | ??????????????# ## ## ##????????#[%%* = | | ??????????????# @ #????????############ | | ??????????????# g g #???????????????????? | | ??????????????# * ! #???????????????????? | | ??????????????# g ## ## #???????????????????? | | ??????????????#????# ## #???????????????????? | | ????????????????? ??????????????????? | | ??????????????" g #?????????????????? | | ????????????? g#?????????????????? | | ????????????# g g#?????????????????? | | ?????????????## g ## ## ###?????????????????? | | ??????????????# g ?# #? #???????????????????? | | ????????????? g ?? ? #???????????????????? | | ???????????? ??? ? #???????????????????? | | ????????????###??? ? #???????????????????? | | ??????????????????##""""#? ##???????????????????? | | ?????????????????????????? ?????????????????????? | | ?????????????????????????? ?????????????????????? | | ?????????????????????????????????????????????????? | | ?????????????????????????????????????????????????? | | ?????????????????????????????????????????????????? | | ?????????????????????????????????????????????????? | | ?????????????????????????????????????????????????? | | ?????????????????????????????????????????????????? | | ?????????????????????????????????????????????????? | | ?????????????????????????????????????????????????? | +----------------------------------------------------+ Best States ------------- Heat Dissipation 71 Energy Generation 41 Energy Capacity 600 Matter Stores 300 Matter Capacity 300 Sight Range 16 Robot Scan Range 16 Terrain Scan Density 10 Armor Coverage 225 Power Shielding 66 Utility Shielding 33 Melee Speed Boost 40 Evasion (%) 55 Melee Accuracy 10 Offensive Hacking 14 Relay Coupler Types 1 Relay Coupler Value 29 Authchip Count 2 Item Schematics ----------------- None Robot Schematics ------------------ None Fabricated ------------ Nothing Alien Tech Used ----------------- None Achievements -------------- None Challenges ------------ None Game ------ Seed EncryptedChainArchive Manual? 0 Play Time 01:28:32 Cumulative 204.9 hours Start 2024.02.18 @ 10:05:45 End 2024.02.18 @ 11:36:28 Sessions 1 Manual Loads 0 Difficulty Rogue Special Mode None Game No. 118 Rogue 118 Adventurer 0 Explorer 0 Win Type - Total 2 Types 2/0/0/0/0/0/0/0/0 Lore% 50 Gallery% 69 Achievement% 55 Wizard Run 0 Options --------- ASCII 0 Keyboard 1 Movement Numpad Keybinds 0 Fullscreen 1 Font 24/Smallcaps Map View 76x50 Tactical HUD 1 Map Filters NONE Filters NONE Steam 1 RUN: ffe3d636-06cc-4e85-8781-e27b98b32bb9